[Event "Hungary Olimpic Hopes 2022"]
[Site "Tapolca"]
[Date "2022.06.24"]
[Round "4.19"]
[White "Illes-Nagy, Nora"]
[Black "Biro, Csilla"]
[Result "1-0"]
[ECO "D35"]
[WhiteElo "1297"]
[BlackElo "1162"]
[Annotator "NA RC"]
[PlyCount "71"]
[EventDate "2022.06.23"]
[EventType "swiss"]
[EventCountry "HUN"]
[SourceTitle "playchess.com"]
[Source "ChessBase"]
[SourceQuality "1"]
[TimeControl "5400+30"]

1. d4 {[%emt 0:30:02]} e6 {[%emt 0:30:11]} 2. c4 {[%emt 0:00:42]} d5 {[%emt 0:00:48]} 3. Nc3 {[%emt 0:01:16]} Nf6 {[%emt 0:00:37]} 4. cxd5 {[%emt 0:01:05]} exd5 {[%emt 0:00:38]} 5. Bg5 {[%emt 0:01:23]} Be7 {[%emt 0:00:46]} 6. e3 {[%emt 0:00:57]} O-O {[%emt 0:03:16]} 7. Qc2 {[%emt 0:01:58]} h6 8. Bf4 {[%emt 0:04:42]} c5 {[%emt 0:08:12]} 9. Nf3 {[%emt 0:07:05]} Nc6 10. dxc5 {[%emt 0:01:23]} Bxc5 {[%emt 0:05:05]} 11. Rd1 {[%emt 0:02:56]} Re8 {[%emt 0:08:36]} 12. Nxd5 Nxd5 {[%emt 0:03:37]} 13. Qxc5 {[%emt 0:00:40]} Be6 14. Bc4 Ncb4 {[%emt 0:14:26]} 15. Bxd5 {[%emt 0:07:02]} Nxd5 16. O-O {[%emt 0:00:23]} Qf6 {[%emt 0:01:53]} 17. Be5 {[%emt 0:01:19]} Qg6 {[%emt 0:00:56]} 18. Rxd5 Bxd5 {[%emt 0:00:46]} 19. Qxd5 {[%emt 0:03:56]} Qb6 {[%emt 0:01:02]} 20. Bd4 {[%emt 0:01:24]} Qa6 {[%emt 0:00:41]} 21. a3 {[%emt 0:01:41]} Red8 {[%emt 0:00:32]} 22. Qe5 f6 23. Qg3 {[%emt 0:01:19]} Rac8 {[%emt 0:01:32]} 24. h3 {[%emt 0:00:27]} Qe6 {[%emt 0:01:24]} 25. Bc3 {[%emt 0:00:43]} a6 {[%emt 0:00:21]} 26. Nd4 {[%emt 0:00:13]} Qb6 {[%emt 0:00:41]} 27. Qg6 {[%emt 0:00:34]} Rd5 {[%emt 0:00:36]} 28. Nf5 {[%emt 0:00:25]} Rc7 {[%emt 0:04:13]} 29. Nxh6+ Kh8 {[%emt 0:02:29]} 30. h4 {[%emt 0:02:22]} Qc6 {[%emt 0:02:34]} 31. Ng4 {[%emt 0:00:50]} Rcd7 {[%emt 0:01:59]} 32. Nxf6 gxf6 {[%emt 0:05:44]} 33. Bxf6+ {[%emt 0:00:32]} Qxf6 {[%emt 0:00:17]} 34. Qxf6+ {[%emt 0:00:00]} Rg7 {[%emt 0:01:12]} 35. Qh6+ {[%emt 0:00:00]} Kg8 {[%emt 0:00:40]} 36. Qe6+ 1-0

[Event "Hungary Olimpic Hopes 2022"]
[Site "Tapolca"]
[Date "2022.06.24"]
[Round "4.20"]
[White "Hangyal, Anna"]
[Black "Ferenczy, Nora"]
[Result "1-0"]
[ECO "B48"]
[WhiteElo "1105"]
[BlackElo "1059"]
[Annotator "NA RC"]
[PlyCount "101"]
[EventDate "2022.06.23"]
[EventType "swiss"]
[EventCountry "HUN"]
[SourceTitle "playchess.com"]
[Source "ChessBase"]
[SourceQuality "1"]
[TimeControl "5400+30"]

1. e4 {[%emt 0:30:11]} c5 {[%emt 0:30:22]} 2. Nf3 {[%emt 0:00:34]} e6 {[%emt 0:00:38]} 3. d4 {[%emt 0:02:40]} cxd4 {[%emt 0:00:18]} 4. Nxd4 {[%emt 0:00:29]} Nc6 {[%emt 0:01:02]} 5. Nc3 {[%emt 0:00:48]} Qc7 {[%emt 0:02:14]} 6. Be3 {[%emt 0:00:53]} Bb4 {[%emt 0:03:31]} 7. Nxc6 {[%emt 0:05:24]} bxc6 {[%emt 0:03:02]} 8. Qd4 {[%emt 0:00:31]} Bxc3+ {[%emt 0:01:21]} 9. Qxc3 {[%emt 0:00:12]} Nf6 {[%emt 0:00:12]} 10. Bd3 {[%emt 0:03:05]} O-O {[%emt 0:02:42]} 11. Bd4 {[%emt 0:01:02]} Qd8 {[%emt 0:02:46]} 12. Be3 {[%emt 0:05:04]} Ng4 {[%emt 0:06:04]} 13. Bf4 {[%emt 0:00:24]} Bb7 {[%emt 0:04:14]} 14. Be2 {[%emt 0:02:47]} Nf6 {[%emt 0:01:24]} 15. Bg5 {[%emt 0:01:48]} Nxe4 {[%emt 0:01:23]} 16. Bxd8 {[%emt 0:00:34]} Nxc3 {[%emt 0:00:20]} 17. Be7 {[%emt 0:00:18]} Rfe8 {[%emt 0:00:29]} 18. Bb4 {[%emt 0:00:25]} Nxe2 {[%emt 0:00:45]} 19. Kxe2 {[%emt 0:00:07]} a5 {[%emt 0:01:53]} 20. Bd6 {[%emt 0:00:16]} Rac8 {[%emt 0:00:46]} 21. Rad1 {[%emt 0:00:22]} c5 {[%emt 0:01:04]} 22. f3 {[%emt 0:02:15]} e5 {[%emt 0:01:01]} 23. Rd2 {[%emt 0:00:38]} f6 {[%emt 0:04:13]} 24. Kf2 {[%emt 0:01:30]} Ba6 {[%emt 0:01:23]} 25. c3 {[%emt 0:02:53]} Bc4 {[%emt 0:05:17]} 26. b3 {[%emt 0:03:06]} Bb5 {[%emt 0:02:12]} 27. Rd5 {[%emt 0:03:08]} e4 {[%emt 0:03:54]} 28. c4 {[%emt 0:05:47]} Bc6 {[%emt 0:02:26]} 29. Rxc5 {[%emt 0:01:36]} e3+ {[%emt 0:01:04]} 30. Ke2 {[%emt 0:00:27]} Re6 {[%emt 0:00:14]} 31. Rd1 {[%emt 0:01:08]} g6 {[%emt 0:02:42]} 32. Rxa5 {[%emt 0:01:55]} Rce8 {[%emt 0:03:55]} 33. b4 {[%emt 0:01:12]} f5 {[%emt 0:01:07]} 34. Bf4 {[%emt 0:01:21]} R8e7 {[%emt 0:02:13]} 35. Rd3 {[%emt 0:00:34]} Kg7 {[%emt 0:01:27]} 36. Raa3 {[%emt 0:00:51]} h6 {[%emt 0:02:20]} 37. Bb8 {[%emt 0:00:49]} Re8 {[%emt 0:01:02]} 38. Ba7 {[%emt 0:00:12]} f4 {[%emt 0:00:16]} 39. b5 {[%emt 0:00:23]} Bb7 {[%emt 0:00:28]} 40. Rxd7+ {[%emt 0:00:26]} R8e7 {[%emt 0:00:33]} 41. Rxe7+ {[%emt 0:00:20]} Rxe7 {[%emt 0:00:06]} 42. Bc5 {[%emt 0:00:29]} Rc7 {[%emt 0:00:25]} 43. Bd4+ {[%emt 0:00:22]} Kf7 {[%emt 0:00:17]} 44. c5 {[%emt 0:00:31]} g5 {[%emt 0:02:29]} 45. c6 {[%emt 0:00:24]} Bc8 {[%emt 0:00:24]} 46. Ra7 {[%emt 0:00:22]} Rxa7 {[%emt 0:00:57]} 47. Bxa7 {[%emt 0:00:06]} Ke7 {[%emt 0:00:51]} 48. b6 {[%emt 0:00:10]} Ba6+ {[%emt 0:00:16]} 49. Ke1 {[%emt 0:00:15]} Kd6 {[%emt 0:00:45]} 50. b7 Kxc6 {[%emt 0:00:20]} 51. b8=Q {[%emt 0:00:18]} 1-0

[Event "Hungary Olimpic Hopes 2022"]
[Site "Tapolca"]
[Date "2022.06.25"]
[Round "5.1"]
[White "Gergely, Daniel"]
[Black "Csernyik, Mark"]
[Result "1/2-1/2"]
[ECO "E73"]
[WhiteElo "1964"]
[BlackElo "1988"]
[Annotator "RC"]
[PlyCount "74"]
[EventDate "2022.06.23"]
[EventType "swiss"]
[EventCountry "HUN"]
[SourceTitle "playchess.com"]
[Source "ChessBase"]
[SourceQuality "1"]
[TimeControl "5400+30"]

1. d4 {[%emt 0:00:06]} Nf6 {[%emt 0:00:08]} 2. c4 {[%emt 0:00:11]} g6 {[%emt 0:00:05]} 3. Nc3 {[%emt 0:00:07]} Bg7 {[%emt 0:00:05]} 4. e4 {[%emt 0:00:14]} d6 {[%emt 0:00:30]} 5. Be2 {[%emt 0:00:16]} O-O {[%emt 0:00:06]} 6. Bg5 {[%emt 0:00:12]} c5 {[%emt 0:00:07]} 7. d5 {[%emt 0:00:21]} e6 {[%emt 0:02:07]} 8. Qd2 exd5 {[%emt 0:01:24]} 9. exd5 {[%emt 0:01:24]} Qb6 {[%emt 0:00:13]} 10. Nf3 {[%emt 0:00:19]} Bf5 {[%emt 0:00:12]} 11. Nh4 {[%emt 0:00:24]} Ne4 {[%emt 0:00:32]} 12. Nxe4 {[%emt 0:00:56]} Bxe4 {[%emt 0:00:06]} 13. f3 {[%emt 0:00:14]} h6 {[%emt 0:00:30]} 14. Bxh6 {[%emt 0:00:52]} Bxh6 {[%emt 0:00:15]} 15. Qxh6 {[%emt 0:00:21]} Qxb2 {[%emt 0:00:27]} 16. Rc1 {[%emt 0:00:13]} Re8 {[%emt 0:10:57]} 17. Qe3 {[%emt 0:32:27]} Qd4 {[%emt 0:00:25]} 18. Qxd4 {[%emt 0:05:20]} cxd4 {[%emt 0:00:19]} 19. Kd2 {[%emt 0:01:27]} Bf5 {[%emt 0:03:49]} 20. Nxf5 {[%emt 0:02:00]} gxf5 {[%emt 0:00:08]} 21. c5 dxc5 {[%emt 0:03:21]} 22. Rxc5 {[%emt 0:02:41]} Nd7 {[%emt 0:02:29]} 23. Rc4 {[%emt 0:15:26]} Rad8 {[%emt 0:00:56]} 24. Rxd4 {[%emt 0:03:06]} Nb6 {[%emt 0:02:39]} 25. d6 {[%emt 0:03:55]} Re6 {[%emt 0:01:18]} 26. Rd1 {[%emt 0:01:09]} Rexd6 {[%emt 0:00:39]} 27. Rxd6 {[%emt 0:00:56]} Rxd6+ {[%emt 0:00:07]} 28. Ke3 {[%emt 0:02:48]} Re6+ {[%emt 0:01:23]} 29. Kf2 {[%emt 0:00:23]} Kg7 {[%emt 0:01:50]} 30. Rd4 {[%emt 0:05:23]} Re5 {[%emt 0:03:05]} 31. a4 {[%emt 0:01:37]} Kf6 {[%emt 0:02:07]} 32. h4 Rd5 {[%emt 0:03:45]} 33. Rxd5 {[%emt 0:02:42]} Nxd5 {[%emt 0:00:06]} 34. Bc4 {[%emt 0:00:34]} Nc3 {[%emt 0:01:11]} 35. Bb3 {[%emt 0:00:25]} a5 {[%emt 0:00:08]} 36. Ke3 {[%emt 0:03:18]} b5 37. axb5 Ke5 1/2-1/2

[Event "Hungary Olimpic Hopes 2022"]
[Site "Tapolca"]
[Date "2022.06.25"]
[Round "5.2"]
[White "Szegedy, Matyas"]
[Black "Matyassy, Lazar"]
[Result "1/2-1/2"]
[ECO "B27"]
[WhiteElo "2046"]
[BlackElo "2161"]
[Annotator "RC"]
[PlyCount "46"]
[EventDate "2022.06.23"]
[EventType "swiss"]
[EventCountry "HUN"]
[SourceTitle "playchess.com"]
[Source "ChessBase"]
[SourceQuality "1"]
[TimeControl "5400+30"]

1. e4 {[%emt 0:00:16]} c5 {[%emt 0:00:12]} 2. Nf3 {[%emt 0:00:08]} g6 {[%emt 0:00:07]} 3. c3 {[%emt 0:00:37]} Bg7 {[%emt 0:00:11]} 4. d4 {[%emt 0:00:27]} cxd4 {[%emt 0:00:08]} 5. cxd4 {[%emt 0:00:07]} d5 6. Bb5+ {[%emt 0:03:20]} Bd7 {[%emt 0:00:21]} 7. Bxd7+ {[%emt 0:00:17]} Qxd7 {[%emt 0:00:10]} 8. e5 Nc6 {[%emt 0:01:25]} 9. Nc3 {[%emt 0:00:30]} Nh6 10. Bxh6 {[%emt 0:16:59]} Bxh6 {[%emt 0:01:18]} 11. O-O {[%emt 0:00:03]} O-O {[%emt 0:01:24]} 12. Re1 {[%emt 0:00:07]} e6 {[%emt 0:02:06]} 13. Qb3 {[%emt 0:23:43]} f6 {[%emt 0:14:27]} 14. Qa4 {[%emt 0:00:30]} a6 15. Rad1 {[%emt 0:11:41]} b5 {[%emt 0:21:06]} 16. Qc2 {[%emt 0:09:15]} Rac8 17. Qd3 fxe5 {[%emt 0:23:26]} 18. Nxe5 {[%emt 0:00:43]} Nxe5 {[%emt 0:00:07]} 19. dxe5 {[%emt 0:00:26]} Qf7 {[%emt 0:02:26]} 20. f3 {[%emt 0:10:26]} Rc4 {[%emt 0:00:30]} 21. b3 Rh4 {[%emt 0:17:05]} 22. Ne2 {[%emt 0:00:43]} Qa7+ {[%emt 0:00:09]} 23. Kh1 Bf4 {[%emt 0:06:07]} 1/2-1/2

[Event "Hungary Olimpic Hopes 2022"]
[Site "Tapolca"]
[Date "2022.06.25"]
[Round "5.3"]
[White "Herczeg, Marcell"]
[Black "Turcsanyi, Vince Gergo"]
[Result "0-1"]
[ECO "C45"]
[WhiteElo "2045"]
[BlackElo "2120"]
[Annotator "RC"]
[PlyCount "110"]
[EventDate "2022.06.23"]
[EventType "swiss"]
[EventCountry "HUN"]
[SourceTitle "playchess.com"]
[Source "ChessBase"]
[SourceQuality "1"]
[TimeControl "5400+30"]

1. e4 {[%emt 0:00:04]} e5 {[%emt 0:00:00]} 2. Nf3 {[%emt 0:00:17]} Nc6 3. d4 {[%emt 0:00:40]} exd4 {[%emt 0:00:28]} 4. Nxd4 {[%emt 0:00:15]} Nf6 {[%emt 0:00:00]} 5. Nxc6 {[%emt 0:00:20]} bxc6 {[%emt 0:05:31]} 6. e5 Nd5 {[%emt 0:00:07]} 7. c4 {[%emt 0:05:33]} Ne7 8. Bd3 {[%emt 0:07:22]} Ng6 {[%emt 0:00:38]} 9. O-O {[%emt 0:00:23]} d6 {[%emt 0:00:00]} 10. exd6 {[%emt 0:08:01]} Bxd6 {[%emt 0:04:27]} 11. Be4 {[%emt 0:08:19]} O-O {[%emt 0:15:52]} 12. Nc3 {[%emt 0:08:31]} Be6 {[%emt 0:07:48]} 13. b3 {[%emt 0:21:24]} Qf6 {[%emt 0:10:24]} 14. Bb2 {[%emt 0:17:30]} Rad8 {[%emt 0:03:58]} 15. Qf3 {[%emt 0:06:46]} Qg5 {[%emt 0:18:36]} 16. Bxg6 {[%emt 0:02:16]} Qxg6 {[%emt 0:02:51]} 17. Ne4 {[%emt 0:00:30]} Bg4 {[%emt 0:00:33]} 18. Qc3 {[%emt 0:05:00]} Be7 {[%emt 0:11:28]} 19. f3 {[%emt 0:01:40]} Bf5 {[%emt 0:02:16]} 20. Qe5 {[%emt 0:00:41]} Bxe4 {[%emt 0:00:30]} 21. Qxe4 {[%emt 0:00:04]} Qxe4 {[%emt 0:05:23]} 22. fxe4 {[%emt 0:00:30]} Bc5+ 23. Kh1 {[%emt 0:00:00]} Rfe8 {[%emt 0:00:45]} 24. Rad1 {[%emt 0:00:19]} Kf8 {[%emt 0:03:25]} 25. e5 {[%emt 0:00:50]} Ke7 {[%emt 0:05:31]} 26. g4 {[%emt 0:00:13]} Ke6 27. Kg2 {[%emt 0:00:01]} Rxd1 {[%emt 0:01:27]} 28. Rxd1 {[%emt 0:00:30]} h5 {[%emt 0:00:23]} 29. h3 {[%emt 0:00:00]} hxg4 {[%emt 0:00:30]} 30. hxg4 {[%emt 0:00:16]} Be7 {[%emt 0:00:43]} 31. Kf3 {[%emt 0:02:27]} Bg5 {[%emt 0:00:25]} 32. Bc3 {[%emt 0:00:36]} Rh8 {[%emt 0:00:12]} 33. Kg3 {[%emt 0:00:10]} Bh4+ {[%emt 0:00:15]} 34. Kf3 {[%emt 0:00:26]} Be7 {[%emt 0:00:30]} 35. Kg3 {[%emt 0:04:13]} Bc5 {[%emt 0:00:37]} 36. b4 {[%emt 0:00:30]} Be7 {[%emt 0:00:06]} 37. b5 {[%emt 0:00:05]} cxb5 {[%emt 0:00:21]} 38. cxb5 {[%emt 0:00:01]} Rd8 {[%emt 0:00:11]} 39. Rxd8 {[%emt 0:00:09]} Bxd8 {[%emt 0:00:01]} 40. Bd4 {[%emt 0:00:09]} Kd5 {[%emt 0:00:10]} 41. Bxa7 {[%emt 0:00:09]} Kc4 {[%emt 0:01:05]} 42. Kf4 {[%emt 0:00:40]} Kxb5 {[%emt 0:00:16]} 43. Ke4 {[%emt 0:02:18]} c5 {[%emt 0:00:12]} 44. Kd5 {[%emt 0:00:18]} c4 {[%emt 0:00:18]} 45. Bd4 {[%emt 0:00:04]} Kb4 {[%emt 0:02:47]} 46. e6 {[%emt 0:02:16]} fxe6+ {[%emt 0:00:04]} 47. Kxe6 {[%emt 0:00:02]} Bf6 {[%emt 0:00:12]} 48. Be3 {[%emt 0:00:04]} Ka3 {[%emt 0:00:12]} 49. g5 {[%emt 0:00:10]} Bb2 {[%emt 0:00:50]} 50. Kf7 {[%emt 0:00:40]} Kxa2 {[%emt 0:00:14]} 51. g6 {[%emt 0:00:18]} Be5 {[%emt 0:01:00]} 52. Ke6 {[%emt 0:00:31]} Bf6 {[%emt 0:00:07]} 53. Kd5 {[%emt 0:01:09]} c3 {[%emt 0:00:05]} 54. Ke4 {[%emt 0:00:14]} c2 {[%emt 0:00:05]} 55. Kd3 {[%emt 0:00:03]} Kb1 {[%emt 0:00:07]} 0-1

[Event "Hungary Olimpic Hopes 2022"]
[Site "Tapolca"]
[Date "2022.06.25"]
[Round "5.4"]
[White "Szakmary, Domonkos"]
[Black "Kolimar, Kristof Pal"]
[Result "1/2-1/2"]
[ECO "B40"]
[WhiteElo "1934"]
[BlackElo "2203"]
[Annotator "ChessBase"]
[PlyCount "62"]
[EventDate "2022.06.23"]
[EventType "swiss"]
[EventCountry "HUN"]
[SourceTitle "playchess.com"]
[Source "ChessBase"]
[SourceQuality "1"]
[TimeControl "5400+30"]

1. e4 {[%emt 0:00:02]} c5 {[%emt 0:00:05]} 2. Nf3 {[%emt 0:00:03]} e6 {[%emt 0:00:04]} 3. d4 {[%emt 0:00:02]} cxd4 {[%emt 0:00:10]} 4. Bg5 {[%emt 0:00:02]} Qc7 {[%emt 0:19:15]} 5. Nxd4 {[%emt 0:03:07]} a6 {[%emt 0:00:34]} 6. Bd3 {[%emt 0:01:03]} Nc6 {[%emt 0:01:48]} 7. Nb3 {[%emt 0:01:01]} Be7 {[%emt 0:05:53]} 8. Bxe7 {[%emt 0:00:09]} Ngxe7 {[%emt 0:00:02]} 9. Nc3 {[%emt 0:01:04]} O-O {[%emt 0:02:11]} 10. O-O b5 {[%emt 0:12:11]} 11. a3 {[%emt 0:04:53]} Bb7 {[%emt 0:01:36]} 12. Nc5 {[%emt 0:05:18]} Rfd8 {[%emt 0:05:02]} 13. Nxb7 {[%emt 0:02:36]} Qxb7 {[%emt 0:00:04]} 14. Qf3 {[%emt 0:13:28]} Qc7 {[%emt 0:06:15]} 15. Rfd1 {[%emt 0:06:29]} Rac8 {[%emt 0:01:05]} 16. Qg3 {[%emt 0:06:45]} Qxg3 {[%emt 0:26:26]} 17. hxg3 {[%emt 0:00:15]} d5 {[%emt 0:00:06]} 18. exd5 {[%emt 0:00:24]} exd5 {[%emt 0:00:05]} 19. Re1 {[%emt 0:04:41]} d4 20. Ne2 {[%emt 0:08:50]} Ng6 {[%emt 0:11:42]} 21. Bxg6 {[%emt 0:12:02]} hxg6 {[%emt 0:00:04]} 22. Rad1 {[%emt 0:00:44]} Rd6 {[%emt 0:03:59]} 23. Rd2 {[%emt 0:01:12]} Rcd8 {[%emt 0:02:46]} 24. Red1 {[%emt 0:00:19]} Kf8 {[%emt 0:00:31]} 25. c3 {[%emt 0:03:33]} d3 {[%emt 0:00:01]} 26. Nc1 Ne5 27. f4 {[%emt 0:01:16]} Nc4 {[%emt 0:00:01]} 28. Rxd3 {[%emt 0:00:08]} Rxd3 {[%emt 0:00:01]} 29. Nxd3 {[%emt 0:03:05]} Ne3 {[%emt 0:00:15]} 30. Rd2 {[%emt 0:00:05]} Nc4 {[%emt 0:00:37]} 31. Rd1 {[%emt 0:00:24]} Ne3 {[%emt 0:00:10]} 1/2-1/2

[Event "Hungary Olimpic Hopes 2022"]
[Site "Tapolca"]
[Date "2022.06.25"]
[Round "5.5"]
[White "Szarvas, Nora Orsolya"]
[Black "Eros, Vivien"]
[Result "1/2-1/2"]
[ECO "B33"]
[WhiteElo "1669"]
[BlackElo "1592"]
[Annotator "NA RC"]
[PlyCount "66"]
[EventDate "2022.06.23"]
[EventType "swiss"]
[EventCountry "HUN"]
[SourceTitle "playchess.com"]
[Source "ChessBase"]
[SourceQuality "1"]
[TimeControl "5400+30"]

1. e4 {[%emt 0:00:03]} c5 {[%emt 0:00:02]} 2. Nf3 {[%emt 0:00:17]} Nc6 {[%emt 0:00:04]} 3. d4 {[%emt 0:00:04]} cxd4 {[%emt 0:00:03]} 4. Nxd4 {[%emt 0:00:05]} Nf6 {[%emt 0:00:05]} 5. Nc3 {[%emt 0:00:05]} e5 {[%emt 0:00:06]} 6. Ndb5 {[%emt 0:00:12]} d6 {[%emt 0:00:12]} 7. Bg5 {[%emt 0:00:10]} a6 {[%emt 0:00:07]} 8. Na3 {[%emt 0:00:03]} b5 {[%emt 0:00:04]} 9. Nd5 {[%emt 0:00:05]} Be7 {[%emt 0:00:07]} 10. Bxf6 {[%emt 0:00:09]} Bxf6 {[%emt 0:00:07]} 11. c4 {[%emt 0:00:32]} b4 {[%emt 0:06:19]} 12. Nc2 {[%emt 0:00:06]} a5 {[%emt 0:00:41]} 13. g3 {[%emt 0:00:34]} O-O {[%emt 0:01:49]} 14. Bg2 {[%emt 0:00:40]} Be6 {[%emt 0:00:21]} 15. O-O {[%emt 0:00:24]} Bg5 {[%emt 0:01:45]} 16. Qd3 {[%emt 0:01:46]} Ne7 {[%emt 0:00:52]} 17. Nce3 {[%emt 0:01:28]} Bxe3 {[%emt 0:08:34]} 18. Nxe3 {[%emt 0:00:14]} Qd7 {[%emt 0:03:57]} 19. Rfd1 {[%emt 0:01:24]} Rfd8 {[%emt 0:00:16]} 20. Rd2 {[%emt 0:01:07]} Rac8 {[%emt 0:00:44]} 21. b3 Qc7 {[%emt 0:10:23]} 22. Rad1 {[%emt 0:04:57]} Nc6 {[%emt 0:14:36]} 23. Nc2 {[%emt 0:04:19]} Ra8 {[%emt 0:09:16]} 24. Qe3 {[%emt 0:05:36]} a4 {[%emt 0:03:50]} 25. Qe2 {[%emt 0:05:29]} axb3 {[%emt 0:05:03]} 26. axb3 {[%emt 0:00:07]} Ra7 {[%emt 0:09:25]} 27. Qd3 {[%emt 0:03:21]} Ra2 {[%emt 0:06:52]} 28. c5 {[%emt 0:05:41]} Na5 {[%emt 0:10:25]} 29. Nxb4 {[%emt 0:07:37]} Rxd2 {[%emt 0:00:22]} 30. Qxd2 {[%emt 0:01:09]} Qxc5 {[%emt 0:00:26]} 31. Nd3 {[%emt 0:01:01]} Qb5 {[%emt 0:00:18]} 32. b4 {[%emt 0:00:40]} Nb3 {[%emt 0:03:38]} 33. Qb2 {[%emt 0:01:34]} Nd4 {[%emt 0:01:25]} 1/2-1/2

[Event "Hungary Olimpic Hopes 2022"]
[Site "Tapolca"]
[Date "2022.06.25"]
[Round "5.6"]
[White "Balazs, Sztella Anna"]
[Black "Kovacs, Reka"]
[Result "1/2-1/2"]
[ECO "C50"]
[WhiteElo "1572"]
[BlackElo "1685"]
[Annotator "NA RC"]
[PlyCount "52"]
[EventDate "2022.06.23"]
[EventType "swiss"]
[EventCountry "HUN"]
[SourceTitle "playchess.com"]
[Source "ChessBase"]
[SourceQuality "1"]
[TimeControl "5400+30"]

1. e4 {[%emt 0:00:01]} e5 {[%emt 0:00:06]} 2. Nf3 {[%emt 0:00:04]} Nc6 {[%emt 0:00:05]} 3. Bc4 {[%emt 0:00:06]} Nf6 {[%emt 0:00:11]} 4. d3 {[%emt 0:00:05]} Bc5 {[%emt 0:00:36]} 5. c3 {[%emt 0:00:06]} a6 {[%emt 0:00:24]} 6. Bb3 {[%emt 0:00:09]} d6 {[%emt 0:00:20]} 7. h3 Be6 {[%emt 0:02:19]} 8. Bc2 {[%emt 0:00:11]} Ba7 {[%emt 0:01:33]} 9. O-O {[%emt 0:00:12]} h6 {[%emt 0:00:27]} 10. Nbd2 {[%emt 0:00:10]} Qd7 {[%emt 0:00:23]} 11. Re1 O-O {[%emt 0:02:59]} 12. Nf1 {[%emt 0:01:32]} Rfe8 {[%emt 0:01:14]} 13. Be3 Rad8 {[%emt 0:05:13]} 14. Bxa7 {[%emt 0:00:45]} Nxa7 {[%emt 0:00:03]} 15. Ng3 Nc8 16. d4 {[%emt 0:01:43]} exd4 {[%emt 0:04:30]} 17. cxd4 {[%emt 0:00:07]} d5 18. e5 Nh7 {[%emt 0:04:30]} 19. Qd3 {[%emt 0:01:16]} Nf8 {[%emt 0:01:45]} 20. Rac1 {[%emt 0:01:01]} Ne7 {[%emt 0:08:40]} 21. Bb1 {[%emt 0:02:37]} Neg6 {[%emt 0:07:24]} 22. Qe3 {[%emt 0:07:53]} Qe7 {[%emt 0:15:16]} 23. Nf5 Qd7 {[%emt 0:00:42]} 24. Ng3 {[%emt 0:07:46]} Qe7 25. Nf5 {[%emt 0:15:56]} Qd7 {[%emt 0:00:56]} 26. Ng3 {[%emt 0:00:13]} Qe7 {[%emt 0:01:34]} 1/2-1/2

[Event "Hungary Olimpic Hopes 2022"]
[Site "Tapolca"]
[Date "2022.06.25"]
[Round "5.7"]
[White "Lazsadi, Kerka Lilla"]
[Black "Beznicza, Mira"]
[Result "1-0"]
[ECO "A25"]
[WhiteElo "1755"]
[BlackElo "1635"]
[Annotator "NA RC"]
[PlyCount "119"]
[EventDate "2022.06.23"]
[EventType "swiss"]
[EventCountry "HUN"]
[SourceTitle "playchess.com"]
[Source "ChessBase"]
[SourceQuality "1"]
[TimeControl "5400+30"]

1. c4 {[%emt 0:00:04]} e5 {[%emt 0:00:21]} 2. Nc3 {[%emt 0:00:17]} Nc6 {[%emt 0:00:40]} 3. g3 {[%emt 0:00:35]} Nf6 {[%emt 0:00:16]} 4. Bg2 {[%emt 0:00:10]} Bb4 5. e3 {[%emt 0:00:44]} Bxc3 {[%emt 0:00:28]} 6. bxc3 {[%emt 0:00:08]} O-O {[%emt 0:00:41]} 7. d4 {[%emt 0:00:38]} d6 {[%emt 0:02:00]} 8. Ne2 {[%emt 0:00:41]} h6 {[%emt 0:00:57]} 9. O-O {[%emt 0:05:24]} Rb8 {[%emt 0:09:55]} 10. Rb1 {[%emt 0:03:22]} Bf5 {[%emt 0:00:30]} 11. Rb2 {[%emt 0:03:36]} Be4 {[%emt 0:05:16]} 12. f3 {[%emt 0:03:13]} Bg6 {[%emt 0:06:25]} 13. e4 {[%emt 0:06:54]} Qe7 {[%emt 0:02:39]} 14. Be3 {[%emt 0:09:35]} a6 {[%emt 0:01:34]} 15. d5 {[%emt 0:04:36]} Nd8 {[%emt 0:02:42]} 16. Nc1 {[%emt 0:04:46]} Nd7 {[%emt 0:04:25]} 17. g4 {[%emt 0:00:30]} Rc8 {[%emt 0:12:02]} 18. Qe1 {[%emt 0:11:17]} Nb6 19. Qe2 {[%emt 0:04:07]} Nd7 {[%emt 0:09:04]} 20. Rd1 {[%emt 0:00:41]} c5 {[%emt 0:08:18]} 21. Bf1 Bh7 {[%emt 0:03:28]} 22. Qf2 {[%emt 0:01:07]} g5 23. h4 f6 {[%emt 0:02:28]} 24. Qg3 {[%emt 0:01:31]} Qf7 {[%emt 0:01:46]} 25. Rdd2 Kg7 {[%emt 0:01:59]} 26. Rh2 {[%emt 0:01:50]} Bg6 {[%emt 0:01:32]} 27. Rh1 Qe8 {[%emt 0:04:04]} 28. hxg5 {[%emt 0:05:34]} fxg5 {[%emt 0:00:34]} 29. Rbh2 {[%emt 0:00:47]} Nf7 {[%emt 0:00:44]} 30. Rh3 Rh8 {[%emt 0:00:54]} 31. Qh2 {[%emt 0:02:34]} Qf8 {[%emt 0:00:53]} 32. Ne2 {[%emt 0:00:18]} b5 33. Ng3 bxc4 {[%emt 0:07:09]} 34. Bxc4 {[%emt 0:01:01]} a5 {[%emt 0:01:01]} 35. Bb5 {[%emt 0:01:00]} Nb6 {[%emt 0:01:40]} 36. a4 {[%emt 0:00:12]} Rb8 {[%emt 0:00:38]} 37. c4 {[%emt 0:00:49]} Nc8 {[%emt 0:02:18]} 38. Bd2 {[%emt 0:00:21]} Ra8 39. Bc3 Qd8 {[%emt 0:02:38]} 40. Qd2 {[%emt 0:02:36]} Ne7 {[%emt 0:00:48]} 41. Nf5+ Bxf5 {[%emt 0:00:54]} 42. gxf5 {[%emt 0:03:37]} Ng8 {[%emt 0:02:08]} 43. f4 {[%emt 0:02:16]} Nf6 {[%emt 0:00:41]} 44. fxg5 {[%emt 0:01:58]} Nxg5 {[%emt 0:00:51]} 45. Rg3 {[%emt 0:01:03]} Nfxe4 {[%emt 0:00:39]} 46. Qg2 {[%emt 0:00:30]} Nxg3 {[%emt 0:00:15]} 47. Qxg3 {[%emt 0:00:10]} Kf6 {[%emt 0:00:57]} 48. Qd3 {[%emt 0:01:49]} Qg8 {[%emt 0:00:38]} 49. Kf1 {[%emt 0:00:08]} Qh7 {[%emt 0:00:59]} 50. Ke1 {[%emt 0:01:31]} Kf7 {[%emt 0:00:00]} 51. Bd7 {[%emt 0:00:18]} h5 {[%emt 0:01:24]} 52. Be6+ {[%emt 0:00:44]} Kf6 53. Bd2 {[%emt 0:01:16]} Qg7 {[%emt 0:01:30]} 54. Kd1 Nxe6 {[%emt 0:01:18]} 55. fxe6 {[%emt 0:01:13]} Qg4+ {[%emt 0:00:23]} 56. Kc1 {[%emt 0:00:15]} Ke7 {[%emt 0:00:27]} 57. Rf1 {[%emt 0:01:01]} e4 {[%emt 0:01:08]} 58. Rf7+ {[%emt 0:00:14]} Ke8 {[%emt 0:00:06]} 59. Qb3 {[%emt 0:00:24]} e3 {[%emt 0:00:55]} 60. Qb5+ {[%emt 0:00:07]} 1-0